fUSD/lending_fUSD_20260326
["ID","MTS","AMOUNT","RATE_DAILY","PERIOD"]
[418909295,1774528245814,-500.0,0.00014397,2]
[418909296,1774528245823,-500.0,0.00014397,2]
[418909297,1774528245833,-500.0,0.00014397,2]
[418909298,1774528245843,-500.0,0.00014397,2]
[418909299,1774528245854,-500.0,0.00014397,2]
[418909300,1774528245863,-500.0,0.00014397,2]
[418909301,1774528245872,-500.0,0.00014397,2]
[418909302,1774528245881,-500.0,0.00014397,2]
[418909303,1774528245891,-500.0,0.00014397,2]
[418909304,1774528245901,-500.0,0.00014397,2]
[418909305,1774528245910,-500.0,0.00014397,2]
[418909306,1774528245920,-500.0,0.00014397,2]
[418909307,1774528245929,-500.0,0.00014397,2]
[418909308,1774528245938,-500.0,0.00014397,2]
[418909309,1774528245947,-868.0,0.00014397,2]
[418909310,1774528245955,-500.0,0.00014397,2]
[418909311,1774528245964,-500.0,0.00014397,2]
[418909312,1774528245974,-500.0,0.00014397,2]
[418909313,1774528245983,-500.0,0.00014397,2]
[418909314,1774528245992,-500.0,0.00014397,2]
[418909315,1774528246001,-500.0,0.00014397,2]
[418909316,1774528246010,-500.0,0.00014397,2]
[418909317,1774528246020,-500.0,0.00014397,2]
[418909318,1774528246029,-500.0,0.00014397,2]
[418909319,1774528246040,-500.0,0.00014397,2]
[418909320,1774528246049,-500.0,0.00014397,2]
[418909322,1774528246058,-500.0,0.00014397,2]
[418909324,1774528246068,-500.0,0.00014397,2]
[418909326,1774528246077,-500.0,0.00014397,2]
[418909328,1774528246086,-500.0,0.00014397,2]
[418909330,1774528246095,-500.0,0.00014397,2]
[418909332,1774528246105,-500.0,0.00014397,2]
[418909334,1774528246114,-500.0,0.00014397,2]
[418909336,1774528246123,-500.0,0.00014397,2]
[418909338,1774528246132,-500.0,0.00014397,2]
[418909340,1774528246141,-500.0,0.00014397,2]
[418909342,1774528246150,-500.0,0.00014397,2]
[418909344,1774528246160,-500.0,0.00014397,2]
[418909346,1774528246168,-500.0,0.00014397,2]
[418909348,1774528246177,-500.0,0.00014397,2]
[418909350,1774528246186,-500.0,0.00014397,2]
[418909351,1774528246196,-500.0,0.00014397,2]
[418909352,1774528246206,-500.0,0.00014397,2]
[418909353,1774528246215,-500.0,0.00014397,2]
[418909354,1774528246225,-500.0,0.00014397,2]
[418909355,1774528246234,-500.0,0.00014397,2]
[418909356,1774528246244,-500.0,0.00014397,2]
[418909357,1774528246254,-500.0,0.00014397,2]
[418909358,1774528246264,-500.0,0.00014397,2]
[418909359,1774528246273,-500.0,0.00014397,2]
[418909360,1774528246284,-500.0,0.00014397,2]
[418909361,1774528246293,-500.0,0.00014397,2]
[418909362,1774528246302,-500.0,0.00014397,2]
[418909363,1774528246311,-500.0,0.00014397,2]
[418909364,1774528246321,-500.0,0.00014397,2]
[418909365,1774528246330,-500.0,0.00014397,2]
[418909366,1774528246340,-500.0,0.00014397,2]
[418909367,1774528246349,-500.0,0.00014397,2]
[418909368,1774528246359,-500.0,0.00014397,2]
[418909369,1774528246369,-500.0,0.00014397,2]
[418909370,1774528246379,-500.0,0.00014397,2]
[418909372,1774528246389,-500.0,0.00014397,2]
[418909374,1774528246398,-500.0,0.00014397,2]
[418909376,1774528246408,-500.0,0.00014397,2]
[418909378,1774528246417,-500.0,0.00014397,2]
[418909380,1774528246426,-500.0,0.00014397,2]
[418909382,1774528246436,-500.0,0.00014397,2]
[418909384,1774528246445,-500.0,0.00014397,2]
[418909386,1774528246454,-519.0,0.00014397,2]
[418909388,1774528246463,-876.0,0.00014397,2]
[418909390,1774528246472,-500.0,0.00014397,2]
[418909392,1774528246482,-500.0,0.00014397,2]
[418909394,1774528246491,-500.0,0.00014397,2]
[418909395,1774528246500,-500.0,0.00014397,2]
[418909396,1774528246509,-500.0,0.00014397,2]
[418909397,1774528246518,-500.0,0.00014397,2]
[418909398,1774528246528,-500.0,0.00014397,2]
[418909399,1774528246538,-500.0,0.00014397,2]
[418909400,1774528246547,-500.0,0.00014397,2]
[418909401,1774528246556,-500.0,0.00014397,2]
[418909402,1774528246567,-500.0,0.00014397,2]
[418909403,1774528246576,-500.0,0.00014397,2]
[418909404,1774528246586,-500.0,0.00014397,2]
[418909405,1774528246595,-500.0,0.00014397,2]
[418909406,1774528246605,-500.0,0.00014397,2]
[418909407,1774528246615,-500.0,0.00014397,2]
[418909408,1774528246625,-500.0,0.00014397,2]
[418909409,1774528246634,-500.0,0.00014397,2]
[418909410,1774528246644,-500.0,0.00014397,2]
[418909411,1774528246653,-500.0,0.00014397,2]
[418909412,1774528246663,-500.0,0.00014397,2]
[418909413,1774528246673,-500.0,0.00014397,2]
[418909414,1774528246683,-500.0,0.00014397,2]
[418909415,1774528246692,-500.0,0.00014397,2]
[418909416,1774528246702,-570.0,0.00014397,2]
[418909417,1774528246711,-184.02,0.00014411,2]
[418909418,1774528246721,-9035.0,0.00014459,2]
[418909419,1774528246731,-1614.0,0.0001449,2]
[418909420,1774528246742,-1841.259934,0.00014766,7]
[418909421,1774528246752,-1001.834812,0.00014769,7]
[418909422,1774528246762,-7238.3153153,0.00014783,2]
[418909423,1774528246772,-500.7959183,0.00014795,2]
[418909424,1774528246781,-500.79031396,0.00014795,2]
[418909425,1774528246791,-433.52493421,0.00014795,2]
[418909426,1774528246802,-1585.20383967,0.00014795,2]
[418909427,1774528246813,-501.13142944,0.00014795,2]
[418909428,1774528246823,-1500.0,0.00014795,2]
[418909429,1774528246832,-1500.0,0.00014795,2]
[418909430,1774528246841,-1576.93292255,0.00014795,2]
[418909431,1774528246850,-1500.0,0.00014795,2]
[418909432,1774528246859,-1500.0,0.00014795,2]
[418909433,1774528246870,-448.4774,0.000148,2]
[418909434,1774528246879,-366.77663085,0.00014813,2]
[418909435,1774528246889,-504.0,0.00014868,2]
[418909436,1774528246898,-300.0,0.00015,2]
[418909437,1774528246907,-285.85,0.00015,2]
[418909438,1774528246916,-626.72,0.00015,2]
[418909439,1774528246925,-1000.0,0.00015,2]
[418909440,1774528246934,-8697.06678659,0.00015021,2]
[418909441,1774528246944,-49679.26237272,0.00015032,2]
[418909442,1774528246953,-180.55,0.00015075,2]
[418909443,1774528246962,-1693.96,0.00015149,2]
[418909444,1774528246972,-476.61,0.00015192,2]
[418909445,1774528246984,-500.0,0.000152,5]
[418909446,1774528246995,-902.4,0.00015296,2]
[418909447,1774528247005,-294.8,0.00015335,2]
[418909448,1774528247015,-2000.0,0.00015342,2]
[418909449,1774528247024,-2000.0,0.00015342,2]
[418909450,1774528247036,-1002.73579383,0.00015342,2]
[418909451,1774528247045,-2000.0,0.00015342,2]
[418909452,1774528247057,-1693.95,0.00015372,2]
[418909453,1774528247067,-502.50023901,0.000154,5]
[418909454,1774528247076,-284.56175556,0.0001541,2]
[418909455,1774528247086,-500.0,0.0001541,2]
[418909456,1774528247097,-500.0,0.0001541,2]
[418909457,1774528247107,-1075.912685,0.00015439,7]
[418909458,1774528247116,-955.851564,0.0001544,7]
[418909459,1774528247127,-350.0,0.00015448,2]
[418909460,1774528247138,-2115.4,0.000155,2]
[418909461,1774528247148,-2106.0,0.000155,2]
[418909462,1774528247157,-1060.32865217,0.00015544,2]
[418909463,1774528247167,-1262.0,0.00015595,2]
[418909464,1774528247178,-924.0,0.00015595,2]
[418909465,1774528247188,-1216.0,0.00015595,2]
[418909466,1774528247197,-2467.0,0.00015595,2]
[418909467,1774528247206,-6011.0,0.00015595,2]
[418909468,1774528247215,-2337.78,0.000156,2]
[418909469,1774528247224,-1100.0,0.000156,5]
[418909470,1774528247233,-1000.0,0.00015601,2]
[418909471,1774528247244,-1000.0,0.00015623,2]
[418909472,1774528247253,-1000.0,0.00015628,2]
[418909473,1774528247262,-1000.0,0.00015645,2]
[418909474,1774528247271,-1000.0,0.00015676,2]
[418909475,1774528247280,-1154.11291767,0.0001568,2]
[418909476,1774528247290,-14168.39,0.000157,2]
[418909477,1774528247299,-131538.01304009,0.000157,2]
[418909478,1774528247310,-1100.0,0.000157,5]
[418909479,1774528247319,-840.541605,0.000157,2]
[418909480,1774528247329,-840.541605,0.000157,2]
[418909481,1774528247338,-840.541605,0.000157,2]
[418909482,1774528247350,-840.541605,0.000157,2]
[418909483,1774528247359,-350.0,0.00015703,2]
[418909484,1774528247370,-1000.0,0.00015718,2]
[418909485,1774528247379,-1000.0,0.00015736,2]
[418909486,1774528247390,-504.0,0.00015737,3]
[418909487,1774528247400,-1000.0,0.00015749,2]
[418909488,1774528247409,-367.0,0.00015753,2]
[418909489,1774528247418,-173.475,0.00015753,2]
[418909490,1774528247427,-173.475,0.00015753,2]
[418909491,1774528247436,-173.475,0.00015753,2]
[418909492,1774528247446,-173.475,0.00015753,2]
[418909493,1774528247455,-1000.0,0.00015762,2]
[418909494,1774528247464,-1000.0,0.00015765,2]
[418909495,1774528247475,-151.0,0.00015765,2]
[418909496,1774528247484,-151.0,0.00015765,2]
[418909497,1774528247493,-151.0,0.00015765,2]
[418909498,1774528247503,-689.196346,0.00015765,2]
[418909499,1774528247512,-689.196346,0.00015765,2]
[418909500,1774528247521,-689.196346,0.00015765,2]
[418909501,1774528247530,-689.196346,0.00015765,2]
[418909502,1774528247539,-151.0,0.00015765,2]
[418909503,1774528247548,-367.0,0.00015774,2]
[418909504,1774528247557,-1100.0,0.000158,5]
[418909505,1774528247566,-1000.0,0.00015838,2]
[418909506,1774528247575,-160.36774061,0.00015855,2]
[418909507,1774528247586,-1959.2628,0.0001586,2]
[418909508,1774528247596,-1820.75,0.00015862,2]
[418909509,1774528247605,-500.0,0.00015871,2]
[418909510,1774528247615,-8697.06678659,0.00015888,2]
[418909511,1774528247624,-2500.0,0.0001589,2]
[418909512,1774528247633,-2500.0,0.0001589,2]
[418909513,1774528247643,-2500.0,0.0001589,2]
[418909514,1774528247652,-541.66,0.00015899,2]
[418909515,1774528247661,-553.97,0.000159,2]
[418909516,1774528247670,-1885.14,0.000159,2]
[418909517,1774528247679,-1000.0,0.000159,2]
[418909518,1774528247688,-49679.26237272,0.000159,2]
[418909519,1774528247698,-761.25746923,0.000159,2]
[418909520,1774528247707,-1100.0,0.000159,5]
[418909521,1774528247716,-5845.63753736,0.000159,2]
[418909522,1774528247726,-7238.3153153,0.000159,2]
[418909523,1774528247735,-12649.0,0.00015905,2]
[418909524,1774528247745,-1959.26279,0.0001591,2]
[418909525,1774528247756,-189.0,0.0001594,3]
[418909526,1774528247765,-1000.0,0.00015958,2]
[418909527,1774528247775,-566.29937097,0.00015958,2]
[418909528,1774528247785,-1959.2628,0.0001596,2]
[418909529,1774528247796,-300.0,0.0001597,2]
[418909530,1774528247806,-400.0,0.0001597,2]
[418909531,1774528247815,-300.0,0.0001597,2]
[418909532,1774528247825,-400.0,0.0001597,2]
[418909533,1774528247834,-400.0,0.0001597,2]
[418909534,1774528247845,-600.0,0.0001597,2]
[418909535,1774528247855,-500.0,0.00015973,2]
[418909536,1774528247864,-500.0,0.00015973,2]
[418909537,1774528247873,-500.0,0.00015973,2]
[418909538,1774528247883,-500.0,0.00015973,2]
[418909539,1774528247891,-500.0,0.00015973,2]
[418909540,1774528247901,-500.0,0.00015973,2]
[418909541,1774528247911,-417.69514484,0.00015973,2]
[418909542,1774528247920,-500.0,0.00015973,2]
[418909543,1774528247929,-500.0,0.00015973,2]
[418909544,1774528247939,-135007.7321911,0.00015988,2]
[418909545,1774528247948,-3437.5440968,0.00015988,2]
[418909546,1774528247958,-502.06723984,0.0001599,2]
[418909547,1774528247967,-1000.0,0.00015993,2]
[418909548,1774528247977,-1000.0,0.00015993,2]
[418909549,1774528247986,-1000.0,0.00015993,2]
[418909550,1774528247995,-1000.0,0.00015993,2]
[418909551,1774528248005,-1000.0,0.00015993,2]
[418909552,1774528248014,-1000.0,0.00015993,2]
[418909553,1774528248024,-1000.0,0.00015993,2]
[418909554,1774528248033,-1000.0,0.00015993,2]
[418909555,1774528248043,-1000.0,0.00015993,2]
[418909556,1774528248051,-1000.0,0.00015993,2]
[418909557,1774528248061,-1000.0,0.00015993,2]
[418909558,1774528248070,-259.654,0.00015993,2]
[418909559,1774528248080,-1000.0,0.00015998,2]
[418909560,1774528248088,-1000.0,0.00015998,2]
[418909561,1774528248098,-469.082,0.00015998,2]
[418909562,1774528248107,-1878.32470845,0.00015999,2]
[418909563,1774528248116,-1010.03678902,0.00015999,5]
[418909564,1774528248125,-541.66,0.00015999,2]
[418909565,1774528248134,-541.66,0.00015999,2]
[418909566,1774528248144,-541.66,0.00015999,2]
[418909567,1774528248153,-541.66,0.00015999,2]
[418909568,1774528248163,-541.66,0.00015999,2]
[418909569,1774528248172,-541.66,0.00015999,2]
[418909570,1774528248181,-541.66,0.00015999,2]
[418909571,1774528248190,-541.66,0.00015999,2]
[418909572,1774528248199,-541.66,0.00015999,2]
[418909573,1774528248208,-541.66,0.00015999,2]
[418909574,1774528248218,-541.66,0.00015999,2]
[418909575,1774528248227,-541.66,0.00015999,2]
[418909576,1774528248237,-541.66,0.00015999,2]
[418909577,1774528248246,-541.82,0.00015999,2]
[418909578,1774528248256,-1008.0,0.00016,5]
[418909579,1774528248265,-1235874.86390508,0.00016,2]
[418909580,1774528248592,-188.52,0.00013699,2]
[418909581,1774528248602,-153.25167062,0.00016,2]
[418909582,1774528248613,-568.9,0.00016,2]
[418909583,1774528248628,-621.86898814,0.00016,2]
[418909584,1774528248660,-621.0,0.00012595,2]
[418909585,1774528248670,-772.20373301,0.00016,2]
[418909586,1774528248763,-393.36682277,0.00015595,2]
[418909587,1774528248774,-227.63317723,0.00015595,2]
[418909588,1774528248783,-246.35975944,0.00016,2]
[418909589,1774528248795,-197476.93244238,0.00016,2]
[418909590,1774528249000,-35528.84956591,0.00016,2]
[418909591,1774528249094,-500.0,8.178e-05,2]
[418909592,1774528249104,-361.97,0.00013699,2]
[418909593,1774528249113,-1215.72999998,0.00016,2]
[418909594,1774528249230,-832200.0,0.00016,2]
[418909602,1774529133136,-155.58894062,0.00011334,2]
[418909604,1774529236093,-344.20801597,0.00010727,2]
[418909618,1774529432317,-1684.55818797,0.000107,2]
[418909619,1774529432327,-121.72198403,0.00010727,2]
[418909620,1774529432336,-250.0,0.00010879,2]
[418909621,1774529432347,-200.0,0.00011,2]
[418909622,1774529432356,-300.0,0.00011025,2]
[418909623,1774529432368,-260.74095275,0.00011031,2]
[418909624,1774529432377,-288.20565364,0.00011152,2]
[418909625,1774529432388,-342.55500895,0.00011235,2]
[418909626,1774529432400,-1200.0,0.00011334,2]
[418909627,1774529432410,-744.64443873,0.00011334,2]
[418909628,1774529432424,-4255.35556127,0.00011334,2]
[418909629,1774529432435,-4826.96312299,0.00011335,2]
[418909635,1774529437921,-833.66172791,0.00011335,2]
[418909636,1774529437935,-500.0,0.00011335,2]
[418909637,1774529438034,-3933.6251491,0.00011335,2]
[418909638,1774529438043,-160.0,0.00011337,2]
[418909639,1774529438053,-979.16666667,0.00011337,2]
[418909640,1774529438063,-727.3,0.00011354,2]
[418909641,1774529438072,-150.0,0.00011358,2]
[418909642,1774529438082,-3678.08949619,0.00011359,2]
[418909643,1774529438095,-1321.91050381,0.00011359,2]
[418909644,1774529438104,-5000.0,0.00011359,2]
[418909645,1774529438114,-5000.0,0.00011359,2]
[418909646,1774529438126,-166.66,0.0001139,2]
[418909647,1774529438137,-342.55500893,0.00011412,2]
[418909648,1774529438148,-3295.17,0.00011507,2]
[418909649,1774529438159,-342.55500893,0.00011588,2]
[418909650,1774529438170,-500.0,0.00011637,2]
[418909651,1774529438179,-1000.0,0.0001168,2]
[418909652,1774529438189,-500.0,0.00011681,2]
[418909653,1774529438199,-151.0,0.00011681,2]
[418909654,1774529438210,-151.0,0.00011681,2]
[418909655,1774529438219,-500.0,0.00011681,2]
[418909656,1774529438231,-151.0,0.00011681,2]
[418909657,1774529438241,-151.0,0.00011681,2]
[418909658,1774529438250,-500.0,0.00011681,2]
[418909659,1774529438260,-500.0,0.00011681,2]
[418909660,1774529438269,-151.0,0.00011681,2]
[418909661,1774529438278,-151.0,0.00011681,2]
[418909662,1774529438288,-500.0,0.00011681,2]
[418909663,1774529438298,-500.0,0.00011681,2]
[418909664,1774529438307,-151.0,0.00011681,2]
[418909665,1774529438316,-151.0,0.00011681,2]
[418909666,1774529438326,-500.0,0.00011681,2]
[418909667,1774529438336,-194.54195204,0.00011681,2]
[418909668,1774529438345,-151.0,0.00011681,2]
[418909669,1774529438355,-151.0,0.00011681,2]
[418909670,1774529438364,-500.0,0.00011681,2]
[418909671,1774529438374,-151.0,0.00011681,2]
[418909672,1774529438383,-151.0,0.00011681,2]
[418909673,1774529438392,-500.0,0.00011681,2]
[418909674,1774529438402,-151.0,0.00011681,2]
[418909675,1774529438411,-151.0,0.00011681,2]
[418909676,1774529438420,-500.0,0.00011681,2]
[418909678,1774529438430,-151.0,0.00011681,2]
[418909680,1774529438441,-151.0,0.00011681,2]
[418909682,1774529438450,-500.0,0.00011681,2]
[418909684,1774529438460,-151.0,0.00011681,2]
[418909686,1774529438471,-151.0,0.00011681,2]
[418909688,1774529438480,-500.0,0.00011681,2]
[418909690,1774529438490,-151.0,0.00011681,2]
[418909692,1774529438499,-151.0,0.00011681,2]
[418909694,1774529438509,-500.0,0.00011681,2]
[418909696,1774529438519,-151.0,0.00011681,2]
[418909698,1774529438528,-151.0,0.00011681,2]
[418909700,1774529438538,-500.0,0.00011681,2]
[418909702,1774529438547,-151.0,0.00011681,2]
[418909704,1774529438556,-151.0,0.00011681,2]
[418909706,1774529438566,-500.0,0.00011681,2]
[418909708,1774529438575,-500.0,0.00011681,2]
[418909710,1774529438584,-151.0,0.00011681,2]
[418909712,1774529438594,-151.0,0.00011681,2]
[418909714,1774529438603,-151.0,0.00011681,2]
[418909716,1774529438613,-151.0,0.00011681,2]
[418909717,1774529438622,-151.0,0.00011681,2]
[418909718,1774529438631,-151.0,0.00011681,2]
[418909719,1774529438640,-151.0,0.00011681,2]
[418909720,1774529438649,-151.0,0.00011681,2]
[418909721,1774529438659,-185.31,0.00011688,2]
[418909722,1774529438668,-9999.99,0.00011688,2]
[418909723,1774529438678,-9999.99,0.00011688,2]
[418909724,1774529438687,-150.99,0.00011688,2]
[418909725,1774529438696,-299.99,0.00011688,2]
[418909726,1774529438706,-9999.99,0.00011688,2]
[418909727,1774529438715,-1168.06,0.00011688,2]
[418909728,1774529438724,-9999.99,0.00011688,2]
[418909729,1774529438735,-150.99,0.00011688,2]
[418909730,1774529438745,-4999.99,0.00011688,2]
[418909731,1774529438755,-500.0,0.00011764,2]
[418909732,1774529438765,-500.0,0.00011764,2]
[418909733,1774529438774,-1285.68334985,0.00011764,2]
[418909734,1774529438784,-500.0,0.00011764,2]
[418909735,1774529438793,-1285.68334985,0.00011764,2]
[418909736,1774529438803,-370.74672447,0.00011764,2]
[418909737,1774529438813,-500.0,0.00011764,2]
[418909738,1774529438824,-1285.68334985,0.00011764,2]
[418909739,1774529438834,-500.0,0.00011764,2]
[418909740,1774529438844,-1285.68334985,0.00011764,2]
[418909741,1774529438854,-500.0,0.00011764,2]
[418909742,1774529438863,-1285.68334985,0.00011764,2]
[418909743,1774529438873,-500.0,0.00011764,2]
[418909744,1774529438883,-1285.68334985,0.00011764,2]
[418909745,1774529438893,-335.65667304,0.00011764,2]
[418909746,1774529438903,-1285.68334985,0.00011764,2]
[418909747,1774529438914,-1285.68334985,0.00011764,2]
[418909748,1774529438924,-1285.68334985,0.00011764,2]
[418909749,1774529438934,-1285.68334985,0.00011764,2]
[418909750,1774529438944,-1285.68334985,0.00011764,2]
[418909751,1774529438954,-1285.68334985,0.00011764,2]
[418909752,1774529438964,-1285.68334985,0.00011764,2]
[418909753,1774529438975,-1285.68334985,0.00011764,2]
[418909754,1774529438986,-1285.68334985,0.00011764,2]
[418909755,1774529438995,-1285.68334985,0.00011764,2]
[418909756,1774529439005,-1285.68334985,0.00011764,2]
[418909757,1774529439014,-1285.68334985,0.00011764,2]
[418909758,1774529439024,-1285.68334985,0.00011764,2]
[418909759,1774529439035,-1285.68334985,0.00011764,2]
[418909760,1774529439047,-1285.68334985,0.00011764,2]
[418909761,1774529439057,-1285.68334985,0.00011764,2]
[418909762,1774529439068,-1285.68334985,0.00011764,2]
[418909763,1774529439078,-1285.68334985,0.00011764,2]
[418909764,1774529439089,-1285.68334985,0.00011764,2]
[418909765,1774529439099,-1285.68334985,0.00011764,2]
[418909766,1774529439109,-1285.68334985,0.00011764,2]
[418909767,1774529439120,-1285.68334985,0.00011764,2]
[418909768,1774529439131,-1285.68334985,0.00011764,2]
[418909769,1774529439142,-1285.68334985,0.00011764,2]
[418909770,1774529439152,-1285.68334985,0.00011764,2]
[418909771,1774529439162,-1285.68334985,0.00011764,2]
[418909772,1774529439171,-1285.68334985,0.00011764,2]
[418909773,1774529439181,-1285.68334985,0.00011764,2]
[418909774,1774529439191,-1285.68334985,0.00011764,2]
[418909775,1774529439200,-1285.68334985,0.00011764,2]
[418909776,1774529439210,-1285.68334985,0.00011764,2]
[418909777,1774529439220,-1285.68334985,0.00011764,2]
[418909778,1774529439231,-1285.68334985,0.00011764,2]
[418909779,1774529439242,-1285.68334985,0.00011764,2]
[418909780,1774529439253,-1285.68334985,0.00011764,2]
[418909781,1774529439262,-1285.68334985,0.00011764,2]
[418909782,1774529439272,-1285.68334985,0.00011764,2]
[418909783,1774529439281,-1285.68334985,0.00011764,2]
[418909784,1774529439291,-1285.68334985,0.00011764,2]
[418909785,1774529439301,-1285.68334985,0.00011764,2]
[418909786,1774529439313,-1285.68334985,0.00011764,2]
[418909787,1774529439323,-1285.68334985,0.00011764,2]
[418909788,1774529439333,-1285.68334985,0.00011764,2]
[418909789,1774529439343,-1285.68334985,0.00011764,2]
[418909790,1774529439353,-1285.68334985,0.00011764,2]
[418909791,1774529439363,-1285.68334985,0.00011764,2]
[418909792,1774529439372,-1285.68334985,0.00011764,2]
[418909793,1774529439383,-1285.68334985,0.00011764,2]
[418909794,1774529439392,-1285.68334985,0.00011764,2]
[418909795,1774529439401,-1285.68334985,0.00011764,2]
[418909796,1774529439411,-1285.68334985,0.00011764,2]
[418909797,1774529439421,-1285.68334985,0.00011764,2]
[418909798,1774529439431,-1285.68334985,0.00011764,2]
[418909799,1774529439441,-1285.68334985,0.00011764,2]
[418909800,1774529439450,-1285.68334985,0.00011764,2]
[418909801,1774529439459,-166.66,0.00011766,2]
[418909802,1774529439469,-9999.99,0.00011766,2]
[418909803,1774529439479,-500.0,0.00011773,2]
[418909804,1774529439489,-300.0,0.000118,2]
[418909805,1774529439498,-250.0,0.000118,2]
[418909806,1774529439508,-153.13021192,0.000118,2]
[418909807,1774529439519,-300.0,0.000118,2]
[418909808,1774529439529,-300.0,0.000118,2]
[418909809,1774529439539,-150.0,0.000118,2]
[418909810,1774529439549,-1087.31,0.00012083,2]
[418909811,1774529439558,-158.41,0.00012111,2]
[418909812,1774529439568,-166.66,0.00012142,2]
[418909813,1774529439579,-1437.81511754,0.00012167,2]
[418909814,1774529439590,-500.0,0.00012207,2]
[418909815,1774529439600,-298.0,0.00012217,2]
[418909816,1774529439611,-262.84833255,0.00012242,2]
[418909817,1774529439621,-685.0,0.00012257,2]
[418909818,1774529439631,-798.0,0.00012282,2]
[418909819,1774529439641,-1000.0,0.00012321,2]
[418909820,1774529439651,-866.49,0.00012346,2]
[418909821,1774529439660,-9966.11176023,0.00012388,2]
[418909822,1774529439670,-1809.57882886,0.00012388,2]
[418909823,1774529439680,-255.0,0.00012415,2]
[418909824,1774529439689,-1680.0,0.00012467,2]
[418909825,1774529439699,-1345.0,0.00012495,2]
[418909826,1774529439710,-1045.0,0.00012495,2]
[418909827,1774529439721,-3516.0,0.00012495,2]
[418909828,1774529439773,-621.0,0.00012495,2]
[418909829,1774529439783,-150.0,0.00012495,2]
[418909830,1774529439793,-1262.0,0.00012495,2]
[418909831,1774529439803,-924.0,0.00012495,2]
[418909832,1774529439814,-1216.0,0.00012495,2]
[418909833,1774529439823,-3763.0,0.00012495,2]
[418909834,1774529439832,-6011.0,0.00012495,2]
[418909835,1774529439842,-2500.0,0.00012496,2]
[418909836,1774529439851,-166.66,0.00012518,2]
[418909837,1774529439861,-1897.48069582,0.00012629,2]
[418909838,1774529439870,-282.0,0.00012653,2]
[418909839,1774529439879,-548.3,0.00012662,2]
[418909840,1774529439888,-414.0,0.00012679,2]
[418909841,1774529439898,-267.0,0.00012704,2]
[418909842,1774529439908,-327.0,0.00012729,2]
[418909843,1774529439918,-2828.7,0.00012729,2]
[418909844,1774529439929,-2828.7,0.00012729,2]
[418909845,1774529439939,-2828.7,0.00012729,2]
[418909846,1774529439949,-2828.7,0.00012729,2]
[418909847,1774529439958,-2828.7,0.00012729,2]
[418909848,1774529439967,-2828.7,0.00012729,2]
[418909850,1774529439978,-2828.7,0.00012729,2]
[418909851,1774529439988,-2828.7,0.00012729,2]
[418909852,1774529439997,-2828.7,0.00012729,2]
[418909853,1774529440006,-2828.7,0.00012729,2]
[418909854,1774529440016,-777.67,0.00012729,2]
[418909855,1774529440026,-898.0,0.0001276,2]
[418909856,1774529440036,-9966.11176021,0.00012778,2]
[418909857,1774529440047,-439.0,0.00012786,2]
[418909858,1774529440056,-1540.61,0.00012803,2]
[418909859,1774529440066,-504.0,0.00012811,2]
[418909860,1774529440075,-700.17,0.00012816,2]
[418909861,1774529440084,-1754.0,0.00012837,2]
[418909862,1774529440094,-1809.57882882,0.0001289,2]
[418909863,1774529440103,-166.66,0.00012894,2]
[418909864,1774529440112,-2000.0,0.00012946,2]
[418909865,1774529440122,-1897.48069581,0.00012992,2]
[418909866,1774529440131,-250.0,0.00013,2]
[418909867,1774529440140,-777.67,0.00013003,2]
[418909868,1774529440150,-197.2164,0.000131,2]